bitfinex/quotes_SOLUSD_20260305
["timestamp","ask_amount","ask_price","bid_price","bid_amount"]
[1772687725188,0.1,90.63,90.591,1.14444145]
[1772687725382,0.1,90.63,90.593,1.14444145]
[1772687726179,1.23452374,90.63,90.593,1.14444145]
[1772687727388,1.07666032,90.628,90.594,39.77994694]
[1772687727689,1.07666032,90.628,90.595,1.14604183]
[1772687729283,11.03423924,90.627,90.596,11.03801492]
[1772687729580,1.07666032,90.626,90.596,11.03801492]
[1772687730201,1.07666032,90.626,90.592,11.03841777]
[1772687731793,1.07666032,90.624,90.583,12.18564087]
[1772687733674,1.07666032,90.624,90.583,11.03959904]
[1772687733875,1.07666032,90.622,90.578,11.04020843]
[1772687735778,1.07666032,90.622,90.578,12.18625026]
[1772687737783,1.07666032,90.62,90.578,12.18625026]
[1772687738004,1.07666032,90.62,90.579,1.14604183]
[1772687738779,4.31022494,90.63,90.579,1.14604183]
[1772687738780,1.07666032,90.627,90.579,1.14604183]
[1772687738999,1.07666032,90.627,90.582,1.14604183]
[1772687739994,1.07666032,90.625,90.587,1.14604183]
[1772687740902,0.1,90.63,90.587,1.14604183]
[1772687741198,0.1,90.63,90.589,1.14604183]
[1772687742106,1.17666032,90.63,90.591,1.14604183]
[1772687742298,1.07666032,90.636,90.591,1.14604183]
[1772687742501,1.07666032,90.636,90.594,1.14604183]
[1772687745206,1.07666032,90.636,90.596,1.14604183]
[1772687745585,1.07666032,90.642,90.597,1.14604183]
[1772687745785,1.07666032,90.641,90.597,1.14604183]
[1772687747184,1.07666032,90.639,90.599,1.14604183]
[1772687749204,1.17230585,90.637,90.601,1.16537955]
[1772687752603,1.17230585,90.635,90.603,1.16537955]
[1772687752809,1.17230585,90.635,90.604,1.16537955]
[1772687753701,1.17230585,90.635,90.603,0.3]
[1772687754306,1.17230585,90.635,90.604,1.16537955]
[1772687755092,1.17230585,90.633,90.605,12.20229804]
[1772687755415,1.17230585,90.633,90.605,11.03691849]
[1772687758718,11.0336305,90.632,90.601,11.03740576]
[1772687758914,1.17230585,90.631,90.601,12.20278531]
[1772687759409,1.17230585,90.631,90.602,1.16537955]
[1772687760917,1.17230585,90.648,90.604,1.16537955]
[1772687761504,1.17230585,90.648,90.603,11.03716212]
[1772687762295,1.17230585,90.648,90.604,1.16537955]
[1772687764619,1.17230585,90.646,90.604,1.16537955]
[1772687765823,1.17230585,90.646,90.605,11.03691849]
[1772687766226,1.17230585,90.646,90.604,1.16537955]
[1772687766524,1.17230585,90.646,90.592,1.16537955]
[1772687766721,1.17230585,90.644,90.594,1.16537955]
[1772687770719,1.17230585,90.642,90.596,1.16537955]
[1772687772524,1.17230585,90.639,90.59,11.33863376]
[1772687772704,1.17230585,90.639,90.585,1.16537955]
[1772687772909,1.17230585,90.637,90.588,1.16537955]
[1772687773324,4.20861048,90.63,90.583,12.20492174]
[1772687773548,1.17230585,90.629,90.583,12.20492174]
[1772687773710,1.17230585,90.629,90.584,1.16537955]
[1772687775513,1.17230585,90.627,90.584,1.16537955]
[1772687775720,1.17230585,90.627,90.586,1.16537955]
[1772687776227,1.17230585,90.599,90.545,1.16537955]
[1772687776524,1.17230585,90.599,90.552,1.16537955]
[1772687777830,1.17230585,90.597,90.554,1.16537955]
[1772687778334,1.17230585,90.589,90.534,1.16537955]
[1772687778513,38.63219938,90.598,90.5,0.2]
[1772687778514,1.17230585,90.579,90.536,1.16537955]
[1772687778706,1.17230585,90.579,90.529,1.11681578]
[1772687779826,4.20861048,90.58,90.531,1.11681578]
[1772687779827,1.1831383,90.577,90.531,1.11681578]
[1772687782015,1.1831383,90.575,90.533,1.11681578]
[1772687782639,1.1831383,90.59,90.533,1.11681578]
[1772687782843,1.1831383,90.609,90.536,1.11681578]
[1772687784236,1.1831383,90.607,90.542,1.11681578]
[1772687785324,1.1831383,90.607,90.546,1.11681578]
[1772687786221,1.1831383,90.623,90.556,1.11681578]
[1772687786521,1.1831383,90.623,90.555,3.69383402]
[1772687786522,1.1831383,90.623,90.558,1.11681578]
[1772687786717,1.1831383,90.623,90.56,1.21812334]
[1772687787934,1.1831383,90.623,90.562,30.0]
[1772687788135,1.18110643,90.621,90.567,38.64542272]
[1772687788342,1.18110643,90.621,90.568,1.21812334]
[1772687791239,1.18110643,90.619,90.569,38.64456932]
[1772687791440,1.18110643,90.619,90.57,1.21812334]
[1772687793940,4.20861048,90.63,90.572,1.21812334]
[1772687793941,1.18110643,90.617,90.572,1.21812334]
[1772687797732,1.18110643,90.615,90.574,1.21812334]
[1772687800824,12.2169287,90.614,90.576,1.21812334]
[1772687801024,11.03582227,90.614,90.576,1.21812334]
[1772687801223,1.18110643,90.613,90.576,1.21812334]
[1772687802951,1.18110643,90.611,90.578,1.21812334]
[1772687806751,1.18110643,90.609,90.58,1.21812334]
[1772687809964,1.18110643,90.609,90.582,1.22395109]
[1772687812564,11.03655306,90.608,90.583,11.03959904]
[1772687812749,1.23013179,90.607,90.584,1.22395109]
[1772687813141,1.23013179,90.607,90.583,11.03959904]
[1772687815156,1.23013179,90.605,90.583,11.03959904]
[1772687816151,1.23013179,90.605,90.566,1.22395109]
[1772687817648,1.23013179,90.603,90.567,1.22395109]
[1772687818770,1.23013179,90.601,90.569,1.22395109]
[1772687821673,1.23013179,90.599,90.571,1.22395109]
[1772687822675,1.23013179,90.599,90.553,1.22395109]
[1772687822975,1.23013179,90.599,90.524,44.18683508]
[1772687822976,1.23013179,90.589,90.541,1.22395109]
[1772687823450,1.23013179,90.579,90.533,1.22395109]
[1772687823647,1.23013179,90.569,90.525,1.22395109]
[1772687823867,1.23013179,90.569,90.524,11.04679422]
[1772687824657,1.23013179,90.569,90.52,11.04727695]
[1772687824975,1.23013179,90.569,90.513,1.22395109]
[1772687824976,1.23013179,90.569,90.516,11.04773472]
[1772687825558,1.23013179,90.567,90.516,1.22395109]
[1772687826174,1.23013179,90.567,90.505,1.22395109]
[1772687828077,1.23013179,90.549,90.497,11.05004562]
[1772687828380,1.23013179,90.549,90.501,11.04960166]
[1772687828965,1.23013179,90.549,90.501,12.27355275]
[1772687829776,1.23013179,90.539,90.491,1.22395109]
[1772687829953,4.20861048,90.54,90.491,1.22395109]
[1772687829954,1.23013179,90.537,90.491,1.22395109]
[1772687830569,1.23013179,90.534,90.48,0.2]
[1772687830768,1.23013179,90.509,90.469,1.22395109]
[1772687830959,1.23013179,90.509,90.471,1.22395109]
[1772687831761,1.23013179,90.529,90.472,1.22395109]
[1772687831955,1.23013179,90.527,90.474,1.22395109]
[1772687834692,1.23013179,90.525,90.476,1.22395109]
[1772687839465,1.18753662,90.531,90.478,1.23500773]
[1772687839989,1.18753662,90.531,90.481,1.23500773]
[1772687841486,1.18753662,90.537,90.486,1.23500773]
[1772687841678,12.23193318,90.544,90.486,1.23500773]
[1772687841867,1.18753662,90.543,90.486,1.23500773]
[1772687843084,1.18753662,90.543,90.491,1.23500773]
[1772687843790,1.18753662,90.559,90.496,1.23500773]
[1772687844393,1.18753662,90.559,90.498,1.23500773]
[1772687844694,1.18753662,90.559,90.501,1.23500773]
[1772687845884,1.18753662,90.557,90.506,1.23500773]
[1772687847803,1.22753104,90.555,90.508,1.248702]
[1772687848497,1.22753104,90.549,90.502,12.29810916]
[1772687848899,1.22753104,90.549,90.502,12.59810916]
[1772687849295,1.22753104,90.549,90.503,1.248702]
[1772687850417,1.22753104,90.547,90.504,11.04923539]
[1772687851406,1.22753104,90.547,90.504,12.29793739]
[1772687853106,1.22753104,90.545,90.505,1.248702]
[1772687855094,1.22753104,90.543,90.499,1.248702]
[1772687855519,1.22753104,90.543,90.493,11.05057849]
[1772687855723,1.22753104,90.543,90.494,1.248702]
[1772687857091,1.22753104,90.543,90.493,12.29928049]
[1772687857312,1.22753104,90.539,90.484,1.248702]
[1772687858801,1.22753104,90.539,90.487,1.248702]
[1772687859896,1.22753104,90.539,90.492,1.248702]
[1772687860698,1.22753104,90.538,90.492,1.248702]
[1772687863308,1.22753104,90.551,90.497,1.248702]
[1772687863635,1.22753104,90.551,90.499,1.248702]
[1772687863818,1.22753104,90.551,90.501,1.248702]
[1772687865302,1.22753104,90.549,90.506,1.248702]
[1772687866811,1.22753104,90.549,90.508,1.248702]
[1772687868797,1.24247551,90.547,90.51,1.16853056]
[1772687869519,1.24247551,90.547,90.507,0.3]
[1772687869722,1.24247551,90.547,90.483,0.3]
[1772687870021,1.24247551,90.529,90.487,1.16853056]
[1772687871422,1.24247551,90.527,90.487,1.16853056]
[1772687871624,1.24247551,90.527,90.489,1.16853056]
[1772687872005,1.24247551,90.527,90.488,11.0511891]
[1772687872006,1.24247551,90.546,90.492,1.16853056]
[1772687875131,1.24247551,90.544,90.494,1.16853056]
[1772687876412,12.28620888,90.55,90.497,1.16853056]
[1772687876813,1.24247551,90.549,90.497,1.16853056]
[1772687877830,12.28634174,90.548,90.502,1.16853056]
[1772687878235,1.24247551,90.547,90.502,1.16853056]
[1772687880832,1.24247551,90.545,90.503,12.21788803]
[1772687881030,1.24247551,90.545,90.504,1.16853056]
[1772687881539,1.24247551,90.545,90.499,11.04979611]
[1772687882922,1.24247551,90.543,90.499,11.04979611]
[1772687883323,1.24247551,90.543,90.499,12.21832667]
[1772687884131,1.24247551,90.541,90.499,12.21832667]
[1772687884429,1.24247551,90.541,90.5,1.16853056]
[1772687885234,1.24247551,90.539,90.502,1.16853056]
[1772687886738,1.24247551,90.539,90.501,11.04960166]
[1772687887326,1.24247551,90.537,90.492,12.21923117]
[1772687887517,1.24247551,90.537,90.493,1.16853056]
[1772687887837,1.24247551,90.537,90.475,1.16853056]
[1772687888029,82.8381453,90.538,90.476,1.16853056]
[1772687888030,1.24247551,90.519,90.476,1.16853056]
[1772687889330,1.24247551,90.517,90.478,1.16853056]
[1772687889529,11.04752645,90.518,90.478,1.16853056]
[1772687890434,1.24247551,90.517,90.478,1.16853056]
[1772687892547,1.24247551,90.515,90.48,1.16853056]
[1772687893963,1.24247551,90.515,90.481,0.3]
[1772687894347,1.24247551,90.515,90.482,1.16853056]
[1772687894962,38.66719694,90.516,90.481,0.3]
[1772687894963,1.24247551,90.513,90.484,1.16853056]
[1772687896153,11.04801467,90.514,90.484,1.16853056]
[1772687897560,27.61677013,90.525,90.482,0.3]
[1772687897561,12.29000196,90.518,90.486,1.16853056]
[1772687897760,1.24247551,90.517,90.486,1.16853056]
[1772687899951,1.22864389,90.515,90.488,1.22584377]
[1772687900543,4.21702831,90.55,90.488,1.52584377]
[1772687900859,44.1581862,90.584,90.488,1.22584377]
[1772687900860,1.22864389,90.549,90.488,1.22584377]
[1772687901260,1.22864389,90.549,90.49,1.22584377]
[1772687902867,55.20835768,90.566,90.493,1.22584377]
[1772687902868,1.22864389,90.547,90.493,1.22584377]
[1772687905957,1.22864389,90.545,90.495,1.22584377]
[1772687908876,1.20607284,90.543,90.497,1.24025871]
[1772687911065,1.20607284,90.541,90.499,1.24025871]
[1772687914479,1.20607284,90.539,90.499,1.24025871]
[1772687914678,1.20607284,90.539,90.498,11.04996795]
[1772687916575,38.65780114,90.538,90.498,1.24025871]
[1772687916781,1.20607284,90.537,90.498,1.24025871]
[1772687918386,1.20607284,90.537,90.489,1.24025871]
[1772687918675,1.20607284,90.527,90.488,12.59137847]
[1772687918858,1.20607284,90.527,90.488,12.29137847]
[1772687919064,1.20607284,90.527,90.489,1.24025871]
[1772687920479,11.04630611,90.528,90.489,1.24025871]
[1772687921971,1.20607284,90.532,90.491,1.24025871]
[1772687923969,1.20607284,90.532,90.491,1.54025871]
[1772687924284,1.20607284,90.53,90.493,1.24025871]
[1772687926780,1.20607284,90.528,90.495,1.24025871]
[1772687927484,1.20607284,90.528,90.492,0.3]
[1772687927790,1.20607284,90.528,90.492,1.54025871]
[1772687929388,1.18190912,90.526,90.492,1.54025871]
[1772687929769,1.18190912,90.526,90.494,1.23116843]
[1772687930870,1.18190912,90.524,90.494,1.23116843]
[1772687932876,1.18190912,90.522,90.481,1.23116843]
[1772687933092,1.18190912,90.522,90.483,1.23116843]
[1772687935900,1.18190912,90.52,90.485,1.23116843]
[1772687936591,1.18190912,90.52,90.479,11.05217054]
[1772687936792,1.18190912,90.52,90.471,0.3]
[1772687936793,1.18190912,90.519,90.471,1.23116843]
[1772687937294,1.18190912,90.519,90.472,1.23116843]
[1772687938279,1.18190912,90.517,90.472,1.23116843]
[1772687939211,1.18190912,90.517,90.474,1.23116843]
[1772687940303,1.18190912,90.528,90.476,1.23116843]
[1772687945010,1.18190912,90.526,90.478,1.23116843]
[1772687947228,1.18190912,90.524,90.48,1.23116843]
[1772687947914,1.18190912,90.524,90.481,0.3]
[1772687948108,1.18190912,90.524,90.482,1.23116843]
[1772687949403,1.18190912,90.522,90.481,0.3]
[1772687950808,1.18190912,90.52,90.477,11.0524173]
[1772687951009,1.18190912,90.52,90.478,1.23116843]
[1772687952923,1.18190912,90.518,90.48,1.23116843]
[1772687955536,1.18190912,90.516,90.48,1.23116843]
[1772687956612,1.18190912,90.514,90.48,1.23116843]
[1772687957024,1.18190912,90.514,90.472,1.23116843]
[1772687958211,1.18190912,90.509,90.471,0.3]
[1772687958517,1.18190912,90.509,90.46,0.2]
[1772687958518,1.18190912,90.497,90.46,0.2]
[1772687960730,44.19157045,90.515,90.45,0.2]
[1772687960731,1.17755498,90.495,90.45,0.2]
[1772687960934,1.17755498,90.489,90.45,0.2]
[1772687961832,4.21852679,90.49,90.45,0.2]
[1772687961833,38.67916186,90.488,90.45,0.2]
[1772687962037,1.17755498,90.487,90.45,0.2]
[1772687963239,1.17755498,90.487,90.444,1.26476121]
[1772687964039,1.17755498,90.485,90.444,1.26476121]
[1772687965131,38.68001679,90.486,90.422,1.26476121]
[1772687965132,1.17755498,90.469,90.422,1.26476121]
[1772687968337,1.16044029,90.467,90.424,1.16260338]
[1772687970441,1.16044029,90.478,90.426,1.16260338]
[1772687970621,11.05228837,90.479,90.426,1.16260338]
[1772687972437,1.16044029,90.479,90.427,38.70525395]
[1772687972638,1.16044029,90.479,90.428,1.16260338]
[1772687974939,1.16044029,90.477,90.43,1.16260338]
[1772687976628,1.16044029,90.477,90.417,55.29907683]
[1772687976629,11.05265484,90.476,90.432,1.16260338]
[1772687976839,12.21309513,90.476,90.432,1.16260338]
[1772687977037,1.16044029,90.475,90.432,1.16260338]
[1772687978741,11.05289917,90.474,90.433,11.05791027]
[1772687978936,1.16044029,90.473,90.434,1.16260338]
[1772687980944,1.16044029,90.471,90.436,1.16260338]
[1772687983959,1.16044029,90.469,90.438,1.16260338]
[1772687986959,1.16044029,90.467,90.439,12.21978004]
[1772687987258,11.05206677,90.481,90.44,1.16260338]
[1772687987764,1.16044029,90.48,90.44,1.16260338]
[1772687991364,1.18153559,90.478,90.442,1.26847776]
[1772687992955,1.18153559,90.476,90.444,1.26847776]
[1772687995874,11.05277701,90.475,90.445,11.05644314]
[1772687996169,11.05277701,90.475,90.446,1.26847776]
[1772687997070,12.2343126,90.475,90.446,1.26847776]
[1772687997272,1.18153559,90.474,90.446,1.26847776]
[1772687998952,1.18153559,90.472,90.448,1.26847776]
[1772688000574,11.05326568,90.471,90.448,1.26847776]
[1772688000762,1.18153559,90.47,90.448,1.26847776]
[1772688000961,1.18153559,90.47,90.443,12.32512145]
[1772688001162,1.18153559,90.47,90.444,1.26847776]
[1772688002658,27.63035863,90.481,90.446,1.26847776]
[1772688002969,1.18153559,90.48,90.446,1.26847776]
[1772688003854,27.62734913,90.491,90.42,0.2]
[1772688003855,1.18153559,90.469,90.421,1.26847776]
[1772688004054,1.18153559,90.469,90.422,1.26847776]
[1772688004355,1.18153559,90.459,90.422,1.26847776]
[1772688004767,38.69198964,90.458,90.422,1.26847776]
[1772688004970,1.18153559,90.457,90.422,1.26847776]
[1772688006158,38.69284513,90.456,90.42,0.2]
[1772688006363,1.18153559,90.455,90.42,0.2]
[1772688007490,1.18153559,90.449,90.42,0.2]
[1772688008562,1.18153559,90.447,90.42,0.2]
[1772688010481,1.18153559,90.447,90.407,1.26847776]
[1772688010659,1.18153559,90.445,90.407,1.26847776]
[1772688010980,1.18153559,90.445,90.41,1.46847776]
[1772688012459,1.18153559,90.429,90.386,1.26847776]
[1772688012675,138.20401121,90.446,90.381,1.26847776]
[1772688012676,1.18153559,90.418,90.381,1.26847776]
[1772688012878,1.18153559,90.418,90.385,1.26847776]
[1772688013578,1.18153559,90.418,90.377,1.26847776]
[1772688013980,1.18153559,90.409,90.366,1.26847776]
[1772688014571,1.18153559,90.407,90.366,1.26847776]
[1772688014886,1.18153559,90.407,90.372,1.26847776]
[1772688016195,1.18153559,90.407,90.341,31.10691712]
[1772688016196,1.18153559,90.407,90.341,30.0]
[1772688016361,1.18153559,90.399,90.356,1.26847776]
[1772688016564,4.21852679,90.4,90.35,0.2]
[1772688016565,1.18153559,90.397,90.35,0.2]
[1772688016764,1.18153559,90.389,90.35,0.2]
[1772688017495,1.18153559,90.389,90.351,1.26847776]
[1772688018568,1.21492798,90.387,90.351,1.26847776]
[1772688018777,1.21492798,90.387,90.351,12.33632832]
[1772688018994,1.21492798,90.387,90.352,1.21496857]
[1772688019667,1.21492798,90.387,90.35,0.2]
[1772688019886,4.23065041,90.37,90.326,0.49108778]
[1772688020073,1.21492798,90.369,90.326,0.49108778]
[1772688020480,1.21492798,90.369,90.326,1.70605635]
[1772688020681,38.73052407,90.368,90.326,1.70605635]
[1772688020886,1.21492798,90.367,90.326,1.70605635]
[1772688021080,1.21492798,90.367,90.326,0.49108778]
[1772688022172,1.21492798,90.365,90.326,0.49108778]
[1772688022368,1.21492798,90.365,90.328,1.21496857]
[1772688023698,1.21492798,90.365,90.326,0.49108778]
[1772688024185,1.21492798,90.359,90.326,1e-08]
[1772688024578,1.21492798,90.357,90.326,1e-08]
[1772688025976,1.21492798,90.357,90.327,1.21496857]
[1772688026780,1.14535369,90.355,90.329,1.25317489]
[1772688028073,11.06689291,90.36,90.329,1.25317489]
[1772688028499,1.14535369,90.359,90.329,1.25317489]
[1772688028699,12.21244238,90.358,90.331,1.25317489]
[1772688028918,1.14535369,90.357,90.331,1.25317489]
[1772688031200,11.06733365,90.356,90.333,1.25317489]
[1772688032312,1.14535369,90.355,90.333,1.25317489]
[1772688033915,1.14535369,90.353,90.333,1.25317489]
[1772688034292,1.14535369,90.353,90.334,1.25317489]
[1772688035096,1.14535369,90.353,90.326,1e-08]
[1772688035317,1.14535369,90.353,90.327,1.25317489]
[1772688035701,11.06757863,90.354,90.327,1.25317489]
[1772688035904,1.14535369,90.354,90.329,1.25317489]
[1772688037909,1.14535369,90.352,90.329,1.25317489]
[1772688038105,4.11037826,90.37,90.326,1.2531749]
[1772688038911,27.66680315,90.361,90.328,1.25317489]
[1772688040229,1.14535369,90.358,90.328,1.25317489]
[1772688042522,1.14535369,90.356,90.328,1.25317489]
[1772688043326,1.14535369,90.356,90.326,1e-08]
[1772688043621,1.14535369,90.356,90.316,1.25317489]
[1772688044624,1.14535369,90.349,90.316,1.25317489]
[1772688045327,1.14535369,90.349,90.315,0.74698555]
[1772688045636,1.14535369,90.349,90.287,5.76726819]
[1772688045637,1.14535369,90.339,90.304,1.25317489]
[1772688045812,1.14535369,90.339,90.292,1.25317489]
[1772688046126,1.14535369,90.329,90.292,1.25317489]
[1772688046628,1.14535369,90.327,90.292,1.25317489]
[1772688046812,1.14535369,90.327,90.293,1.25317489]
[1772688047609,27.6732787,90.34,90.293,1.25317489]
[1772688047924,1.14535369,90.339,90.293,1.25317489]
[1772688048107,1.14535369,90.338,90.293,1.25317489]
[1772688051039,44.26819376,90.359,90.261,88.63140288]
[1772688051040,1.13156807,90.336,90.287,1.22890528]
[1772688051234,1.13156807,90.336,90.289,1.22890528]
[1772688051440,1.13156807,90.329,90.29,1.42890528]
[1772688056122,1.13156807,90.327,90.292,1.22890528]
[1772688056442,38.74767513,90.328,90.292,1.22890528]
[1772688056443,11.07076432,90.328,90.292,1.22890528]
[1772688056828,1.13156807,90.327,90.292,1.22890528]
[1772688058916,11.07076432,90.328,90.294,1.22890528]
[1772688059141,61.78760185,90.5,90.294,1.22890528]
[1772688059142,1.13156807,90.348,90.294,1.22890528]
[1772688059322,27.67067793,90.349,90.294,1.22890528]
[1772688059525,1.13156807,90.376,90.299,4.9227393]
[1772688059726,1.13156807,90.376,90.3,1.22890528]
[1772688060036,1.13156807,90.339,90.296,30.0]
[1772688060221,1.13156807,90.339,90.297,1.22890528]
[1772688060630,1.13156807,90.329,90.291,1.22890528]
[1772688061229,1.13156807,90.327,90.285,1.22890528]
[1772688061429,1.13156807,90.327,90.279,1.22890528]
[1772688062532,38.74767513,90.328,90.279,1.22890528]
[1772688062533,1.13156807,90.319,90.279,1.22890528]
[1772688063246,1.13156807,90.319,90.28,11.2765292]
[1772688063425,1.13156807,90.317,90.29,1.42890528]
[1772688063631,1.13156807,90.317,90.292,1.22890528]
[1772688064238,11.07199007,90.318,90.292,1.22890528]
[1772688064839,1.13156807,90.358,90.292,1.22890528]
[1772688065022,1.13156807,90.358,90.29,0.2]
[1772688065023,1.13156807,90.339,90.29,0.2]
[1772688065344,1.13156807,90.329,90.29,0.2]
[1772688065645,1.13156807,90.327,90.29,0.2]
[1772688065844,1.13156807,90.327,90.291,11.07530097]
[1772688066148,1.13156807,90.327,90.29,0.2]
[1772688067643,1.13156807,90.325,90.29,0.2]
[1772688071250,1.13156807,90.323,90.29,0.2]
[1772688072758,1.13156807,90.323,90.29,1.42890528]
[1772688073758,1.13156807,90.321,90.29,1.42890528]
[1772688075643,1.13156807,90.309,90.29,1e-08]
[1772688079051,1.24004512,90.307,90.29,1e-08]
[1772688079759,1.24004512,90.307,90.28,0.2]
[1772688079964,1.24004512,90.307,90.28,1e-08]
[1772688081161,1.24004512,90.305,90.28,1e-08]
[1772688082345,4.23893483,90.29,90.27,1e-08]
[1772688082556,4.23893483,90.29,90.237,5.75846754]
[1772688082557,1.24004512,90.279,90.243,1.22132105]
[1772688083063,1.24004512,90.279,90.207,5.75300526]
[1772688083064,1.24004512,90.279,90.192,27.71838982]
[1772688083268,11.07922755,90.259,90.201,11.08635159]
[1772688083576,11.07868825,90.264,90.201,38.80223057]
[1772688083964,1.24004512,90.263,90.201,38.80223057]
[1772688084169,1.24004512,90.259,90.201,38.80223057]
[1772688085077,1.24004512,90.259,90.202,1.22132105]
[1772688085285,1.24004512,90.257,90.204,1.22132105]
[1772688087382,1.25630974,90.255,90.206,1.21970266]
[1772688088862,1.25630974,90.253,90.208,1.21970266]
[1772688090668,1.25630974,90.249,90.208,1.21970266]
[1772688090870,1.25630974,90.247,90.208,1.21970266]
[1772688092973,1.25630974,90.245,90.208,1.21970266]
[1772688093377,1.25630974,90.245,90.209,1.21970266]
[1772688095077,4.23893483,90.25,90.209,1.21970266]
[1772688095078,1.25630974,90.243,90.209,1.21970266]
[1772688096888,11.08055302,90.249,90.211,1.21970266]
[1772688097087,1.25630974,90.255,90.213,1.21970266]
[1772688097681,1.25630974,90.274,90.213,1.21970266]
[1772688098376,1.25630974,90.269,90.213,1.21970266]
[1772688099387,1.25630974,90.249,90.206,1.21970266]
[1772688101072,1.25630974,90.267,90.206,1.21970266]
[1772688101304,1.25630974,90.265,90.208,1.21970266]
[1772688103401,1.25630974,90.265,90.184,3.69383402]
[1772688103402,1.25630974,90.249,90.198,1.21970266]
[1772688103819,138.48267302,90.264,90.198,1.21970266]
[1772688103820,1.25630974,90.263,90.198,1.21970266]
[1772688107893,1.25630974,90.261,90.2,1.21970266]
[1772688108484,12.3347121,90.266,90.203,1.21970266]
[1772688108900,1.1893465,90.265,90.203,1.21970266]
[1772688109281,1.1893465,90.265,90.205,1.14469677]
[1772688110606,1.1893465,90.259,90.207,1.14469677]
[1772688112001,1.1893465,90.257,90.209,1.14469677]
[1772688116286,1.1893465,90.255,90.211,1.14469677]
[1772688118995,1.1893465,90.255,90.212,38.79749921]
[1772688119203,1.1893465,90.253,90.213,1.14469677]
[1772688119592,1.1893465,90.253,90.212,38.79749921]
[1772688121304,1.1893465,90.251,90.212,11.08499977]
[1772688122306,1.1893465,90.249,90.204,1.14469677]
[1772688123907,1.1893465,90.247,90.195,11.08708908]
[1772688124503,1.1893465,90.229,90.179,11.08895724]
[1772688124722,127.42664656,90.248,90.173,11.08974349]
[1772688124723,1.1893465,90.219,90.173,11.08974349]
[1772688125218,1.1893465,90.219,90.17,30.0]
[1772688125606,1.1893465,90.219,90.169,11.09022998]
[1772688125916,38.79491897,90.218,90.169,11.09022998]
[1772688126122,1.1893465,90.217,90.169,11.09022998]
[1772688127222,38.79491897,90.218,90.154,1.25947217]
[1772688128123,4.23893483,90.22,90.156,1.25947217]
[1772688128699,3.69383402,90.226,90.156,1.25947217]
[1772688129512,4.23893483,90.22,90.156,1.25947217]
[1772688131223,38.79448896,90.219,90.158,1.25947217]
[1772688132509,94.21518748,90.219,90.158,1.25947217]
[1772688132709,4.23893483,90.21,90.158,1.25947217]
[1772688133314,44.33282765,90.227,90.136,30.0]
[1772688133315,4.23893483,90.19,90.136,30.0]
[1772688133503,3.69383402,90.206,90.138,1.25947217]
[1772688133701,4.23893483,90.2,90.138,1.25947217]
[1772688134110,3.69383402,90.206,90.138,1.25947217]
[1772688134315,4.23893483,90.2,90.138,1.25947217]
[1772688134515,4.23893483,90.19,90.138,1.25947217]
[1772688134919,4.23893483,90.2,90.138,1.25947217]
[1772688135230,4.23893483,90.18,90.135,0.74847728]
[1772688135404,44.33282765,90.227,90.136,1.25947217]
[1772688135405,4.23893483,90.19,90.136,1.25947217]
[1772688135613,4.23893483,90.2,90.136,1.25947217]
[1772688136023,4.23893483,90.19,90.136,1.25947217]
[1772688137218,38.80309094,90.199,90.137,11.09422323]
[1772688137529,11.08229713,90.234,90.154,3.69383402]
[1772688137710,11.08229713,90.234,90.161,1.25947217]
[1772688137911,4.23893483,90.23,90.161,1.25947217]
[1772688138727,11.08229713,90.234,90.161,1.25947217]
[1772688138728,38.78803997,90.234,90.161,1.25947217]
[1772688138926,4.23893483,90.22,90.161,1.25947217]
[1772688139221,38.79448896,90.219,90.162,11.09114704]
[1772688139421,38.79448896,90.219,90.141,1.25947217]
[1772688139741,4.23893483,90.21,90.145,1.25947217]
[1772688139936,38.79448896,90.219,90.145,1.25947217]
[1772688141827,38.79448896,90.219,90.147,1.25947217]
[1772688143038,38.79448896,90.219,90.146,38.82590464]
[1772688143039,11.0841397,90.219,90.15,1.25947217]
[1772688143332,11.08303409,90.228,90.157,1.25947217]
[1772688143505,38.79061931,90.228,90.157,1.25947217]
[1772688143933,38.78589079,90.239,90.162,1.25947217]
[1772688145226,4.24703823,90.23,90.162,1.25947217]
[1772688146236,38.79018939,90.229,90.165,1.25947217]
[1772688147742,94.19430622,90.239,90.167,1.25947217]
[1772688147925,38.78589079,90.239,90.167,1.25947217]
[1772688152018,38.78589079,90.239,90.155,44.36767659]
[1772688152019,38.78589079,90.239,90.168,38.81643154]
[1772688152343,38.78589079,90.239,90.169,1.25947217]
[1772688155027,4.24703823,90.23,90.171,1.25947217]
[1772688155443,38.78116342,90.25,90.174,1.25947217]
[1772688155647,38.78116342,90.25,90.178,1.25947217]
[1772688156247,38.78116342,90.25,90.183,1.25947217]
[1772688156444,38.77729644,90.259,90.185,1.25947217]
[1772688156627,11.07922755,90.259,90.187,3.69383402]
[1772688156828,11.07922755,90.259,90.189,1.25947217]
[1772688157233,4.24703823,90.24,90.189,1.25947217]
[1772688157549,4.24703823,90.25,90.189,1.25947217]
[1772688158050,38.77729644,90.259,90.189,1.25947217]
[1772688158051,11.07922755,90.259,90.189,1.25947217]
[1772688158529,38.77300068,90.269,90.194,1.25947217]